fUSD/lending_fUSD_20250507
["ID","MTS","AMOUNT","RATE_DAILY","PERIOD"]
[360221726,1746633054049,-171.329238,0.00019999,2]
[360221727,1746633054058,-697.21,0.00019999,2]
[360221728,1746633054068,-697.34,0.00019999,2]
[360221729,1746633054077,-125.91208146,0.00019999,2]
[360221730,1746633054257,-45.41715654,0.00019999,2]
[360221731,1746633054266,-171.329238,0.00019999,2]
[360221732,1746633054275,-255.46,0.00019999,2]
[360221733,1746633054284,-450.0,0.00019999,2]
[360221734,1746633054294,-450.0,0.00019999,2]
[360221735,1746633054303,-450.0,0.00019999,2]
[360221736,1746633054313,-140.54953352,0.00019999,2]
[360221737,1746633054324,-309.45046648,0.00019999,2]
[360221738,1746633054334,-450.0,0.00019999,2]
[360221739,1746633054344,-109.79549873,0.00019999,2]
[360221740,1746633054355,-340.20450127,0.00019999,2]
[360221741,1746633054364,-239.34349873,0.00019999,2]
[360221742,1746633054376,-210.65650127,0.00019999,2]
[360221743,1746633054385,-450.0,0.00019999,2]
[360221744,1746633054395,-450.0,0.00019999,2]
[360221745,1746633054404,-151.0,0.00019999,2]
[360221746,1746633054414,-298.34349873,0.00019999,2]
[360221747,1746633054747,-151.65650127,0.00019999,2]
[360221748,1746633054765,-151.0,0.00019999,2]
[360221749,1746633054782,-387.76531027,0.00019999,2]
[360221750,1746633054800,-62.23468973,0.00019999,2]
[360221751,1746633054810,-287.75720673,0.00019999,2]
[360221752,1746633054820,-150.0,0.00019999,2]
[360221753,1746633054830,-450.0,0.00019999,2]
[360221754,1746633054841,-450.0,0.00019999,2]
[360221755,1746633054856,-599.8212189,0.00019999,2]
[360221756,1746633054867,-450.0,0.00019999,2]
[360221757,1746633054877,-439.23504858,0.00019999,2]
[360221758,1746633054886,-151.0,0.00019999,2]
[360221759,1746633054897,-151.0,0.00019999,2]
[360221760,1746633054906,-450.0,0.00019999,2]
[360221761,1746633054916,-450.0,0.00019999,2]
[360221762,1746633054926,-450.0,0.00019999,2]
[360221763,1746633054936,-450.0,0.00019999,2]
[360221764,1746633054945,-450.0,0.00019999,2]
[360221765,1746633054955,-450.0,0.00019999,2]
[360221766,1746633054965,-450.0,0.00019999,2]
[360221767,1746633054974,-450.0,0.00019999,2]
[360221768,1746633054983,-450.0,0.00019999,2]
[360221769,1746633054993,-450.0,0.00019999,2]
[360221770,1746633055003,-165.13607072,0.00019999,2]
[360221771,1746633055013,-150.0,0.00019999,2]
[360221772,1746633055023,-492.23,0.00019999,2]
[360221773,1746633055032,-492.23,0.00019999,2]
[360221774,1746633055043,-492.23,0.00019999,2]
[360221775,1746633055052,-492.23,0.00019999,2]
[360221776,1746633055062,-492.23,0.00019999,2]
[360221777,1746633055072,-492.23,0.00019999,2]
[360221778,1746633055083,-492.23,0.00019999,2]
[360221779,1746633055093,-492.23,0.00019999,2]
[360221780,1746633055102,-492.23,0.00019999,2]
[360221781,1746633055111,-492.23,0.00019999,2]
[360221782,1746633055121,-492.23,0.00019999,2]
[360221783,1746633055131,-492.23,0.00019999,2]
[360221784,1746633055140,-563.38361736,0.00019999,2]
[360221785,1746633055149,-492.23,0.00019999,2]
[360221786,1746633055159,-492.23,0.00019999,2]
[360221787,1746633055168,-492.23,0.00019999,2]
[360221788,1746633055177,-492.23,0.00019999,2]
[360221789,1746633055185,-492.23,0.00019999,2]
[360221790,1746633055194,-151.0,0.00019999,2]
[360221791,1746633055204,-492.23,0.00019999,2]
[360221792,1746633055214,-492.27,0.00019999,2]
[360221793,1746633055224,-450.0,0.00019999,2]
[360221794,1746633055234,-450.0,0.00019999,2]
[360221795,1746633055244,-450.0,0.00019999,2]
[360221796,1746633055255,-151.0,0.00019999,2]
[360221797,1746633055265,-450.0,0.00019999,2]
[360221798,1746633055275,-450.0,0.00019999,2]
[360221799,1746633055285,-450.0,0.00019999,2]
[360221800,1746633055295,-450.0,0.00019999,2]
[360221801,1746633055304,-450.0,0.00019999,2]
[360221802,1746633055314,-450.0,0.00019999,2]
[360221803,1746633055324,-450.0,0.00019999,2]
[360221804,1746633055333,-450.0,0.00019999,2]
[360221805,1746633055343,-85.80569021,0.00019999,2]
[360221806,1746633120879,14995.00647048,0.00018944,2]
[360221807,1746633122305,-151.417308,0.00019514,2]
[360221808,1746633122330,-14.242692,0.00019514,2]
[360221809,1746633128474,14593.798515,7.945e-05,2]
[360221810,1746633147580,150.0,0.0001893,2]
[360221811,1746633161700,23900.0,0.00018931,2]
[360221812,1746633196258,500.0,0.00029589,30]
[360221813,1746633196508,500.0,0.00029863,35]
[360221814,1746633199244,250.0,0.00019416,2]
[360221815,1746633200909,514.689011,0.00026733,120]
[360221816,1746633242413,500.0,0.00029589,30]
[360221817,1746633242673,500.0,0.00029863,30]
[360221818,1746633245292,160.62,0.000298,31]
[360221819,1746633245351,160.62,0.000298,31]
[360221820,1746633245414,160.62,0.000298,31]
[360221821,1746633245478,160.62,0.000298,31]
[360221822,1746633245529,160.62,0.000298,31]
[360221823,1746633255699,500.0,0.0003,30]
[360221824,1746633400557,10000.0,0.00030137,120]
[360221825,1746633410729,965.0,0.00030137,120]
[360221826,1746633422193,249.06313,0.000248,34]
[360221827,1746633422491,249.06314,0.000273,39]
[360221828,1746633422528,249.06313,0.000298,44]
[360221829,1746633422573,250.0,0.00018879,2]
[360221831,1746633433984,300.0,0.0003,30]
[360221832,1746633440603,159.5,0.00018806,2]
[360221834,1746633511900,1000.0,0.00018881,2]
[360221835,1746633522018,5998.00451932,0.0003,30]
[360221836,1746633528919,1465.93,0.00018875,2]
[360221837,1746633556365,500.0,0.0003,30]
[360221838,1746633575891,2264.18,0.00018806,2]
[360221839,1746633594546,10782.29339819,0.0003,30]
[360221842,1746633657595,1105.0,0.000194,2]
[360221843,1746633657685,2446.04,0.0001885,2]
[360221844,1746633662839,3565.73952357,0.00019416,2]
[360221845,1746633684312,150.0,0.00018986,7]
[360221846,1746633708897,443.56,0.00019416,2]
[360221847,1746633725895,166.14,0.0001936,2]
[360221848,1746633731884,695.13751505,0.00019183,2]
[360221850,1746633815544,500.0,0.00029589,30]
[360221851,1746633815794,500.0,0.00029863,35]
[360221852,1746633846988,160.68,0.000298,31]
[360221853,1746633847037,160.68,0.000298,31]
[360221854,1746633847111,160.68,0.000298,31]
[360221855,1746633847159,160.68,0.000298,31]
[360221856,1746633847236,160.68,0.000298,31]
[360221857,1746633847361,160.68,0.000298,31]
[360221858,1746633847428,160.68,0.000298,31]
[360221859,1746633864726,500.0,0.00029589,30]
[360221860,1746633864965,500.0,0.00029863,30]
[360221861,1746633917923,500.0,0.0003,30]
[360221862,1746633923190,261.40628,0.000273,39]
[360221863,1746633923281,261.40629,0.000248,34]
[360221864,1746633923399,261.40628,0.000298,44]
[360221867,1746633964799,3650.63808365,0.00019416,2]
[360221868,1746633964843,151.0,0.00019416,2]
[360221869,1746633966122,3129.11835742,0.00019416,2]
[360221870,1746633967035,2682.10144921,0.00019416,2]
[360221871,1746633968016,2298.94409933,0.00019416,2]
[360221872,1746633968929,720.6,0.00019416,2]
[360221873,1746633968952,1249.92351371,0.00019416,2]
[360221874,1746633970312,1689.02015461,0.00019416,2]
[360221875,1746633971209,1447.73156109,0.00019416,2]
[360221876,1746633972160,1240.91276665,0.00019416,2]
[360221877,1746633973121,1063.63951427,0.00019416,2]
[360221878,1746633973890,911.69101223,0.00019416,2]
[360221879,1746633974915,781.44943906,0.00019416,2]
[360221880,1746633977675,669.8138049,0.00019416,2]
[360221881,1746633978470,574.12611849,0.00019416,2]
[360221882,1746633979614,153.4,0.00019416,2]
[360221883,1746633979637,338.70810156,0.00019416,2]
[360221884,1746633980513,421.8069442,0.00019416,2]
[360221885,1746633981465,153.4,0.00019416,2]
[360221886,1746633981488,208.14880931,0.00019416,2]
[360221887,1746633982349,309.89897941,0.00019416,2]
[360221888,1746633983250,265.62769664,0.00019416,2]
[360221889,1746633984307,227.68088283,0.00019416,2]
[360221890,1746633985148,195.15504243,0.00019416,2]
[360221891,1746633986057,167.27575065,0.00019416,2]
[360221892,1746633986751,151.0,0.00019416,2]
[360221893,1746633987515,151.0,0.00019416,2]
[360221894,1746633988185,151.0,0.00019416,2]
[360221895,1746633989011,151.0,0.00019416,2]
[360221896,1746633990030,151.0,0.00019416,2]
[360221897,1746633990722,248.65450394,0.00019416,2]
[360221898,1746634001225,250.0,0.00017,2]
[360221899,1746634002313,300.0,0.00019,2]
[360221900,1746634003871,200.0,0.00018751,2]
[360221901,1746634033744,200.0,0.00018805,2]
[360221902,1746634047346,871.25,0.00016848,2]
[360221903,1746634047774,871.25,0.00019112,2]
[360221904,1746634096699,2849.22,0.00018755,2]
[360221905,1746634160233,169.0,0.0003013,120]
[360221906,1746634215691,491.95,0.00018773,2]
[360221907,1746634216441,491.95,0.00025812,120]
[360221908,1746634216654,491.95,0.00028159,120]
[360221909,1746634221335,500.0,0.0003,30]
[360221910,1746634228674,261.40629,0.0002595,36]
[360221912,1746634231937,-500.0,0.00019514,2]
[360221913,1746634231946,-151.0,0.00019514,2]
[360221914,1746634231956,-200.0,0.00019514,2]
[360221915,1746634231966,-200.0,0.00019555,2]
[360221916,1746634231976,-1105.0,0.000196,2]
[360221917,1746634231986,-1000.0,0.000196,2]
[360221918,1746634231996,-695.13751505,0.00019606,2]
[360221919,1746634232007,-479.567,0.00019607,2]
[360221920,1746634232017,-1294.5185,0.00019614,2]
[360221921,1746634232027,-1200.0,0.00019639,2]
[360221922,1746634232046,-300.0,0.00019639,2]
[360221923,1746634232061,-85.77698495,0.0001964,2]
[360221924,1746634232074,-1285.90345045,0.0001964,2]
[360221925,1746634232088,-111.07305764,0.0001964,2]
[360221926,1746634232098,-300.0,0.00019644,2]
[360221927,1746634232108,-151.69112009,0.00019646,2]
[360221928,1746634232178,-182.09887991,0.00019646,2]
[360221929,1746634232188,-150.99,0.00019646,2]
[360221930,1746634232200,-207.4,0.00019652,2]
[360221931,1746634232213,-554.09550737,0.00019663,2]
[360221932,1746634232224,-5000.0,0.00019673,2]
[360221933,1746634232235,-894.78,0.00019699,2]
[360221934,1746634232246,-179.09,0.000197,7]
[360221935,1746634232256,-2769.26,0.000197,2]
[360221936,1746634232266,-18367.37,0.000197,2]
[360221937,1746634232279,-547.6,0.000197,2]
[360221938,1746634232288,-1508.4595,0.000197,2]
[360221939,1746634232298,-151.0,0.00019702,2]
[360221940,1746634232308,-668.65185757,0.00019702,2]
[360221941,1746634232318,-151.0,0.00019702,2]
[360221942,1746634232328,-262.01599656,0.0001971,2]
[360221943,1746634232338,-500.0,0.0001971,2]
[360221944,1746634232348,-500.0,0.0001971,2]
[360221945,1746634232358,-230.33552445,0.0001971,2]
[360221946,1746634232368,-84.27865458,0.0001971,2]
[360221947,1746634232383,-415.72134542,0.0001971,2]
[360221948,1746634232393,-500.0,0.0001971,2]
[360221950,1746634232404,-389.27865458,0.0001971,2]
[360221952,1746634232420,-110.72134542,0.0001971,2]
[360221954,1746634232429,-500.0,0.0001971,2]
[360221956,1746634232440,-500.0,0.0001971,2]
[360221958,1746634232449,-500.0,0.0001971,2]
[360221960,1746634232459,-500.0,0.0001971,2]
[360221963,1746634232470,-500.0,0.0001971,2]
[360221966,1746634232480,-384.18964108,0.0001971,2]
[360221969,1746634232490,-279.34172496,0.0001971,2]
[360221973,1746634232508,-220.65827504,0.0001971,2]
[360221976,1746634232519,-96.5372226,0.0001971,2]
[360222164,1746634237912,-253.75010491,0.00019614,2]
[360222167,1746634237922,-403.4627774,0.0001971,2]
[360222169,1746634237933,-500.0,0.0001971,2]
[360222171,1746634237942,-500.0,0.0001971,2]
[360222173,1746634237953,-500.0,0.0001971,2]
[360222175,1746634237963,-500.0,0.0001971,2]
[360222177,1746634237973,-500.0,0.0001971,2]
[360222178,1746634237984,-500.0,0.0001971,2]
[360222179,1746634237994,-500.0,0.0001971,2]
[360222180,1746634238004,-500.0,0.0001971,2]
[360222181,1746634238273,-500.0,0.0001971,2]
[360222182,1746634238284,-500.0,0.0001971,2]
[360222183,1746634238295,-500.0,0.0001971,2]
[360222184,1746634238306,-500.0,0.0001971,2]
[360222185,1746634238317,-500.0,0.0001971,2]
[360222186,1746634238327,-500.0,0.0001971,2]
[360222187,1746634238337,-500.0,0.0001971,2]
[360222188,1746634238347,-500.0,0.0001971,2]
[360222189,1746634238357,-500.0,0.0001971,2]
[360222190,1746634238367,-500.0,0.0001971,2]
[360222191,1746634238377,-500.0,0.0001971,2]
[360222192,1746634238386,-249.62169176,0.0001971,2]
[360222193,1746634238396,-500.0,0.0001971,2]
[360222194,1746634238407,-500.0,0.0001971,2]
[360222195,1746634238417,-500.0,0.0001971,2]
[360222196,1746634238427,-500.0,0.0001971,2]
[360222197,1746634238436,-500.0,0.0001971,2]
[360222198,1746634238446,-500.0,0.0001971,2]
[360222199,1746634238455,-500.0,0.0001971,2]
[360222200,1746634238465,-500.0,0.0001971,2]
[360222201,1746634238474,-500.0,0.0001971,2]
[360222202,1746634238483,-500.0,0.0001971,2]
[360222203,1746634238493,-500.0,0.0001971,2]
[360222204,1746634238503,-500.0,0.0001971,2]
[360222205,1746634238513,-500.0,0.0001971,2]
[360222206,1746634238523,-500.0,0.0001971,2]
[360222207,1746634238532,-500.0,0.0001971,2]
[360222208,1746634238541,-500.0,0.0001971,2]
[360222209,1746634238550,-500.0,0.0001971,2]
[360222210,1746634238560,-500.0,0.0001971,2]
[360222211,1746634238571,-500.0,0.0001971,2]
[360222212,1746634238582,-500.0,0.0001971,2]
[360222213,1746634238592,-500.0,0.0001971,2]
[360222214,1746634238603,-500.0,0.0001971,2]
[360222215,1746634238613,-500.0,0.0001971,2]
[360222216,1746634238623,-500.0,0.0001971,2]
[360222217,1746634238632,-500.0,0.0001971,2]
[360222218,1746634238641,-500.0,0.0001971,2]
[360222219,1746634238651,-500.0,0.0001971,2]
[360222220,1746634238662,-500.0,0.0001971,2]
[360222221,1746634238672,-500.0,0.0001971,2]
[360222222,1746634238681,-500.0,0.0001971,2]
[360222223,1746634238691,-500.0,0.0001971,2]
[360222224,1746634238700,-500.0,0.0001971,2]
[360222225,1746634238710,-500.0,0.0001971,2]
[360222226,1746634238720,-500.0,0.0001971,2]
[360222227,1746634238730,-500.0,0.0001971,2]
[360222228,1746634238739,-500.0,0.0001971,2]
[360222229,1746634238749,-500.0,0.0001971,2]
[360222230,1746634238759,-500.0,0.0001971,2]
[360222231,1746634238770,-333.00268818,0.0001971,2]
[360222232,1746634238780,-500.0,0.0001971,2]
[360222233,1746634238790,-500.0,0.0001971,2]
[360222234,1746634238799,-500.0,0.0001971,2]
[360222235,1746634238809,-500.0,0.0001971,2]
[360222236,1746634238819,-500.0,0.0001971,2]
[360222237,1746634238829,-500.0,0.0001971,2]
[360222238,1746634238838,-500.0,0.0001971,2]
[360222239,1746634238848,-500.0,0.0001971,2]
[360222240,1746634238857,-500.0,0.0001971,2]
[360222241,1746634238867,-500.0,0.0001971,2]
[360222242,1746634238877,-500.0,0.0001971,2]
[360222243,1746634238887,-500.0,0.0001971,2]
[360222244,1746634238896,-500.0,0.0001971,2]
[360222245,1746634238906,-500.0,0.0001971,2]
[360222246,1746634238918,-500.0,0.0001971,2]
[360222247,1746634238927,-500.0,0.0001971,2]
[360222248,1746634238937,-500.0,0.0001971,2]
[360222249,1746634238947,-500.0,0.0001971,2]
[360222250,1746634238958,-500.0,0.0001971,2]
[360222251,1746634238969,-500.0,0.0001971,2]
[360222252,1746634238979,-500.0,0.0001971,2]
[360222253,1746634238989,-500.0,0.0001971,2]
[360222254,1746634238999,-500.0,0.0001971,2]
[360222255,1746634239008,-500.0,0.0001971,2]
[360222256,1746634239018,-500.0,0.0001971,2]
[360222257,1746634239027,-500.0,0.0001971,2]
[360222258,1746634239037,-500.0,0.0001971,2]
[360222259,1746634239046,-500.0,0.0001971,2]
[360222260,1746634239055,-500.0,0.0001971,2]
[360222261,1746634239065,-200.0,0.0001971,2]
[360222262,1746634239074,-500.0,0.0001971,2]
[360222263,1746634239084,-500.0,0.0001971,2]
[360222264,1746634239093,-500.0,0.0001971,2]
[360222265,1746634239103,-500.0,0.0001971,2]
[360222266,1746634239112,-500.0,0.0001971,2]
[360222267,1746634239122,-500.0,0.0001971,2]
[360222268,1746634239132,-500.0,0.0001971,2]
[360222269,1746634239142,-500.0,0.0001971,2]
[360222270,1746634239151,-500.0,0.0001971,2]
[360222271,1746634239162,-500.0,0.0001971,2]
[360222272,1746634239172,-500.0,0.0001971,2]
[360222273,1746634239182,-500.0,0.0001971,2]
[360222274,1746634239192,-500.0,0.0001971,2]
[360222275,1746634239205,-500.0,0.0001971,2]
[360222276,1746634239215,-500.0,0.0001971,2]
[360222277,1746634239226,-500.0,0.0001971,2]
[360222278,1746634239235,-163.15919366,0.0001971,2]
[360222279,1746634239244,-500.0,0.0001971,2]
[360222280,1746634239255,-500.0,0.0001971,2]
[360222281,1746634239265,-500.0,0.0001971,2]
[360222282,1746634239274,-500.0,0.0001971,2]
[360222283,1746634239284,-500.0,0.0001971,2]
[360222284,1746634239296,-500.0,0.0001971,2]
[360222285,1746634239306,-500.0,0.0001971,2]
[360222286,1746634239316,-500.0,0.0001971,2]
[360222287,1746634239327,-500.0,0.0001971,2]
[360222288,1746634239336,-500.0,0.0001971,2]
[360222289,1746634239345,-500.0,0.0001971,2]
[360222290,1746634239355,-500.0,0.0001971,2]
[360222291,1746634239365,-500.0,0.0001971,2]
[360222292,1746634239375,-216.31591937,0.0001971,2]
[360222293,1746634239386,-450.0,0.00019714,2]
[360222294,1746634239396,-500.0,0.00019714,2]
[360222295,1746634239406,-450.0,0.00019714,2]
[360222296,1746634239417,-450.0,0.00019714,2]
[360222297,1746634239427,-450.0,0.00019714,2]
[360222298,1746634239436,-450.0,0.00019714,2]
[360222299,1746634239446,-450.0,0.00019714,2]
[360222300,1746634239456,-450.0,0.00019714,2]
[360222301,1746634239466,-450.0,0.00019714,2]
[360222302,1746634239475,-594.54687409,0.00019714,2]
[360222303,1746634239485,-450.0,0.00019714,2]
[360222304,1746634239495,-450.0,0.00019714,2]
[360222305,1746634239505,-450.0,0.00019714,2]
[360222306,1746634239515,-450.0,0.00019714,2]
[360222307,1746634239524,-450.0,0.00019714,2]
[360222308,1746634239534,-450.0,0.00019714,2]
[360222309,1746634239544,-460.50052423,0.00019714,2]
[360222310,1746634239555,-450.0,0.00019714,2]
[360222311,1746634239565,-512.25529573,0.00019714,2]
[360222312,1746634239574,-450.0,0.00019714,2]
[360222313,1746634239584,-450.0,0.00019714,2]
[360222314,1746634239595,-450.0,0.00019714,2]
[360222315,1746634239605,-450.0,0.00019714,2]
[360222316,1746634239615,-515.82031115,0.00019714,2]
[360222317,1746634239625,-450.0,0.00019714,2]
[360222318,1746634239635,-20.63635892,0.00019714,2]
[360222320,1746634239650,-317.3984458,0.00019714,2]
[360222321,1746634239663,-111.96519528,0.00019714,2]
[360222322,1746634239672,-452.85885943,0.00019714,2]
[360222323,1746634239682,-62.84367389,0.00019714,2]
[360222324,1746634239694,-411.59951221,0.00019714,2]
[360222325,1746634239703,-265.90566806,0.00019714,2]
[360222331,1746634239781,-253.7501049,0.00019646,2]
[360222333,1746634239791,-184.09433194,0.00019714,2]
[360222335,1746634239800,-450.0,0.00019714,2]
[360222336,1746634239811,-172.90345859,0.00019714,2]
[360222337,1746634239832,-277.09654141,0.00019714,2]
[360222338,1746634239843,-397.31981309,0.00019714,2]
[360222339,1746634239856,-52.68018691,0.00019714,2]
[360222340,1746634239865,-450.0,0.00019714,2]
[360222342,1746634239876,-450.0,0.00019714,2]
[360222343,1746634239885,-450.0,0.00019714,2]
[360222344,1746634239895,-450.0,0.00019714,2]
[360222345,1746634239904,-450.0,0.00019714,2]
[360222346,1746634239915,-450.0,0.00019714,2]
[360222347,1746634239924,-450.0,0.00019714,2]
[360222348,1746634239934,-450.0,0.00019714,2]
[360222349,1746634239945,-450.0,0.00019714,2]
[360222350,1746634239955,-450.0,0.00019714,2]
[360222351,1746634239964,-515.94296531,0.00019714,2]
[360222352,1746634239974,-526.85949687,0.00019714,2]
[360222353,1746634239985,-450.0,0.00019714,2]
[360222354,1746634239995,-450.0,0.00019714,2]
[360222355,1746634240005,-450.0,0.00019714,2]
[360222356,1746634240015,-450.0,0.00019714,2]
[360222357,1746634240024,-450.0,0.00019714,2]
[360222358,1746634240034,-455.91609395,0.00019714,2]
[360222359,1746634240044,-571.66696018,0.00019714,2]
[360222360,1746634240054,-450.0,0.00019714,2]
[360222361,1746634240063,-450.0,0.00019714,2]
[360222362,1746634240073,-450.0,0.00019714,2]
[360222363,1746634240082,-286.45126402,0.00019714,2]
[360222364,1746634240092,-450.0,0.00019714,2]
[360222365,1746634240102,-458.29053416,0.00019714,2]
[360222366,1746634240112,-450.0,0.00019714,2]
[360222367,1746634240122,-450.0,0.00019714,2]
[360222368,1746634240131,-450.0,0.00019714,2]
[360222369,1746634240141,-559.93383443,0.00019714,2]
[360222370,1746634240151,-450.0,0.00019714,2]
[360222371,1746634240161,-467.65597295,0.00019714,2]
[360222372,1746634240171,-450.0,0.00019714,2]
[360222373,1746634240181,-450.0,0.00019714,2]
[360222374,1746634240190,-450.0,0.00019714,2]
[360222375,1746634240202,-450.0,0.00019714,2]
[360222376,1746634240213,-469.28958865,0.00019714,2]
[360222377,1746634240223,-450.0,0.00019714,2]
[360222378,1746634240233,-450.0,0.00019714,2]
[360222379,1746634240243,-450.0,0.00019714,2]
[360222380,1746634240258,-450.0,0.00019714,2]
[360222381,1746634240273,-450.0,0.00019714,2]
[360222382,1746634240288,-450.0,0.00019714,2]
[360222383,1746634240302,-450.0,0.00019714,2]
[360222384,1746634240314,-450.0,0.00019714,2]
[360222385,1746634240324,-450.0,0.00019714,2]
[360222386,1746634240336,-475.97162289,0.00019714,2]
[360222387,1746634240348,-450.0,0.00019714,2]
[360222388,1746634240361,-450.0,0.00019714,2]
[360222389,1746634240374,-450.0,0.00019714,2]
[360222390,1746634240386,-450.0,0.00019714,2]
[360222391,1746634240399,-450.0,0.00019714,2]
[360222392,1746634240414,-450.0,0.00019714,2]
[360222393,1746634240427,-450.0,0.00019714,2]
[360222394,1746634240438,-450.0,0.00019714,2]
[360222395,1746634240453,-450.0,0.00019714,2]
[360222396,1746634240464,-450.0,0.00019714,2]
[360222397,1746634240474,-450.0,0.00019714,2]
[360222398,1746634240486,-450.0,0.00019714,2]
[360222399,1746634240501,-450.0,0.00019714,2]
[360222400,1746634240515,-474.75625511,0.00019714,2]
[360222401,1746634240527,-450.0,0.00019714,2]
[360222402,1746634240540,-450.0,0.00019714,2]
[360222403,1746634240553,-500.0,0.00019714,2]
[360222404,1746634240566,-450.0,0.00019714,2]
[360222405,1746634240578,-450.0,0.00019714,2]
[360222406,1746634240591,-450.0,0.00019714,2]
[360222407,1746634240604,-450.0,0.00019763,2]
[360222408,1746634240617,-450.0,0.00019763,2]
[360222409,1746634240628,-450.0,0.00019763,2]
[360222410,1746634240641,-450.0,0.00019763,2]
[360222411,1746634240654,-226.72,0.00019763,2]
[360222412,1746634240667,-450.0,0.00019763,2]
[360222413,1746634240679,-450.0,0.00019763,2]
[360222414,1746634240691,-450.0,0.00019763,2]
[360222415,1746634240703,-450.0,0.00019763,2]
[360222416,1746634240716,-450.0,0.00019763,2]
[360222417,1746634240727,-450.0,0.00019763,2]
[360222418,1746634240741,-450.0,0.00019763,2]
[360222419,1746634240752,-450.0,0.00019763,2]
[360222420,1746634240763,-450.0,0.00019763,2]
[360222421,1746634240777,-450.0,0.00019763,2]
[360222422,1746634240790,-450.0,0.00019763,2]
[360222423,1746634240802,-450.0,0.00019763,2]
[360222424,1746634240816,-450.0,0.00019763,2]
[360222425,1746634240828,-450.0,0.00019763,2]
[360222426,1746634240840,-450.0,0.00019763,2]
[360222427,1746634240851,-450.0,0.00019763,2]
[360222428,1746634240860,-450.0,0.00019763,2]
[360222429,1746634240873,-450.0,0.00019763,2]
[360222430,1746634240883,-450.0,0.00019763,2]
[360222431,1746634240895,-454.33,0.00019763,2]
[360222432,1746634240909,-450.0,0.00019763,2]
[360222433,1746634240923,-450.0,0.00019763,2]
[360222434,1746634240933,-450.0,0.00019763,2]
[360222436,1746634240944,-450.0,0.00019763,2]
[360222438,1746634240954,-450.0,0.00019763,2]
[360222441,1746634240964,-450.0,0.00019763,2]
[360222442,1746634240976,-450.0,0.00019763,2]
[360222443,1746634240988,-450.0,0.00019763,2]
[360222444,1746634241000,-450.0,0.00019763,2]
[360222445,1746634241014,-450.0,0.00019763,2]
[360222446,1746634241026,-450.0,0.00019763,2]
[360222447,1746634241037,-450.0,0.00019763,2]
[360222448,1746634241049,-450.0,0.00019763,2]
[360222449,1746634241060,-450.0,0.00019763,2]
[360222450,1746634241071,-450.0,0.00019763,2]
[360222451,1746634241082,-450.0,0.00019763,2]
[360222452,1746634241094,-450.0,0.00019763,2]
[360222453,1746634241106,-5618.58,0.00019763,2]
[360222454,1746634241117,-500.0,0.00019773,2]
[360222455,1746634241128,-500.0,0.00019773,2]
[360222456,1746634241144,-500.0,0.00019773,2]
[360222457,1746634241155,-500.0,0.00019773,2]